[Event "Wuerttemberg Rapid Teams 2024"]
[Site "B?blingen, Germany"]
[Date "2024.04.13"]
[Round "5.16"]
[White "Schaffert, Walter"]
[Black "Sokratov, Stanislav"]
[Result "0-1"]
[ECO "B14"]
[WhiteElo "2033"]
[BlackElo "2146"]
[Annotator "RC"]
[PlyCount "96"]
[EventDate "2024.04.13"]
[EventType "team-tourn"]
[SourceTitle "playchess.com"]
[Source "ChessBase"]
[SourceQuality "1"]
[TimeControl "900+5"]

1. e4 {[%emt 0:00:01]} c6 {[%emt 0:00:00]} 2. d4 {[%emt 0:00:05]} d5 {[%emt 0:00:02]} 3. exd5 {[%emt 0:00:04]} cxd5 {[%emt 0:00:01]} 4. c4 {[%emt 0:00:02]} Nf6 {[%emt 0:00:02]} 5. Nc3 {[%emt 0:00:03]} e6 {[%emt 0:00:01]} 6. Nf3 {[%emt 0:00:03]} Bb4 {[%emt 0:00:02]} 7. cxd5 {[%emt 0:00:11]} Nxd5 {[%emt 0:00:02]} 8. Bd2 {[%emt 0:00:02]} b6 {[%emt 0:00:41]} 9. a3 {[%emt 0:00:03]} Nxc3 {[%emt 0:00:05]} 10. bxc3 {[%emt 0:00:06]} Bd6 {[%emt 0:00:03]} 11. Bd3 {[%emt 0:00:04]} Bb7 {[%emt 0:00:14]} 12. Qe2 {[%emt 0:00:12]} Nd7 {[%emt 0:02:21]} 13. a4 {[%emt 0:00:32]} a6 {[%emt 0:01:21]} 14. Rb1 {[%emt 0:01:13]} Qc7 {[%emt 0:01:18]} 15. Be4 {[%emt 0:00:37]} Bxe4 {[%emt 0:00:44]} 16. Qxe4 {[%emt 0:00:02]} O-O {[%emt 0:00:06]} 17. O-O {[%emt 0:01:21]} Rfc8 {[%emt 0:01:29]} 18. Rfc1 {[%emt 0:00:16]} Qc4 {[%emt 0:02:12]} 19. Ng5 {[%emt 0:00:55]} Nf6 {[%emt 0:00:00]} 20. Qb7 {[%emt 0:00:07]} Bc7 {[%emt 0:01:11]} 21. Qf3 {[%emt 0:06:56]} h6 {[%emt 0:01:25]} 22. Nh3 {[%emt 0:00:40]} Qxa4 {[%emt 0:00:41]} 23. Bxh6 {[%emt 0:00:08]} Qc4 {[%emt 0:00:46]} 24. Bg5 {[%emt 0:00:18]} Nd5 {[%emt 0:00:19]} 25. Bh4 {[%emt 0:00:48]} b5 {[%emt 0:01:05]} 26. Ng5 {[%emt 0:00:15]} Nf6 {[%emt 0:00:08]} 27. Nh3 {[%emt 0:00:44]} Qd5 {[%emt 0:00:27]} 28. Qd3 {[%emt 0:00:19]} Qe4 {[%emt 0:00:11]} 29. Qxe4 {[%emt 0:00:17]} Nxe4 {[%emt 0:00:02]} 30. f3 {[%emt 0:00:17]} Nd2 {[%emt 0:00:07]} 31. Rb2 {[%emt 0:00:09]} Nc4 {[%emt 0:00:02]} 32. Ra2 {[%emt 0:00:05]} a5 {[%emt 0:00:07]} 33. Rb1 {[%emt 0:00:17]} Rcb8 {[%emt 0:00:03]} 34. Nf2 {[%emt 0:00:19]} a4 {[%emt 0:00:08]} 35. Bg3 {[%emt 0:00:07]} Bxg3 {[%emt 0:00:06]} 36. hxg3 {[%emt 0:00:02]} Ne3 {[%emt 0:00:07]} 37. Nd3 {[%emt 0:00:03]} Nd5 {[%emt 0:00:02]} 38. Rc1 {[%emt 0:00:11]} Rb6 {[%emt 0:00:04]} 39. Nc5 {[%emt 0:00:03]} Rc8 {[%emt 0:00:12]} 40. c4 {[%emt 0:00:02]} bxc4 {[%emt 0:00:04]} 41. Rxc4 {[%emt 0:00:02]} e5 {[%emt 0:00:08]} 42. Nd7 {[%emt 0:00:13]} Rxc4 {[%emt 0:00:06]} 43. Nxb6 {[%emt 0:00:06]} Nxb6 {[%emt 0:00:01]} 44. dxe5 {[%emt 0:00:01]} g5 {[%emt 0:00:04]} 45. Rb2 {[%emt 0:00:07]} Nd5 {[%emt 0:00:03]} 46. Rd2 {[%emt 0:00:10]} Nc3 {[%emt 0:00:02]} 47. Rc2 {[%emt 0:00:10]} a3 {[%emt 0:00:02]} 48. Kf2 {[%emt 0:00:03]} a2 {[%emt 0:00:01]} 0-1

[Event "Wuerttemberg Rapid Teams 2024"]
[Site "B?blingen, Germany"]
[Date "2024.04.13"]
[Round "5.17"]
[White "Peng, Xiang-Tobias"]
[Black "Li, Yunqi"]
[Result "0-1"]
[ECO "E38"]
[WhiteElo "2187"]
[BlackElo "1940"]
[Annotator "RC"]
[PlyCount "84"]
[EventDate "2024.04.13"]
[EventType "team-tourn"]
[SourceTitle "playchess.com"]
[Source "ChessBase"]
[SourceQuality "1"]
[TimeControl "900+5"]

1. d4 {[%emt 0:00:02]} Nf6 {[%emt 0:00:01]} 2. c4 {[%emt 0:00:12]} e6 {[%emt 0:00:00]} 3. Nc3 {[%emt 0:00:07]} Bb4 {[%emt 0:00:02]} 4. Qc2 {[%emt 0:00:11]} c5 {[%emt 0:00:13]} 5. e3 {[%emt 0:00:16]} Nc6 {[%emt 0:00:02]} 6. Nf3 {[%emt 0:00:05]} d5 {[%emt 0:00:04]} 7. a3 {[%emt 0:01:26]} Bxc3+ {[%emt 0:00:02]} 8. bxc3 {[%emt 0:00:04]} O-O {[%emt 0:00:07]} 9. Be2 {[%emt 0:01:00]} dxc4 {[%emt 0:00:08]} 10. Bxc4 {[%emt 0:00:04]} b6 {[%emt 0:00:07]} 11. O-O {[%emt 0:00:04]} Bb7 {[%emt 0:00:01]} 12. Bb2 {[%emt 0:00:59]} Na5 {[%emt 0:00:07]} 13. Be2 {[%emt 0:00:06]} c4 {[%emt 0:00:03]} 14. Ne5 {[%emt 0:00:10]} Rc8 {[%emt 0:00:05]} 15. Rad1 {[%emt 0:02:17]} Qe8 {[%emt 0:00:14]} 16. Bc1 {[%emt 0:00:06]} Be4 {[%emt 0:00:08]} 17. Qb2 {[%emt 0:00:29]} Nd7 {[%emt 0:00:47]} 18. Nxd7 {[%emt 0:00:16]} Qxd7 {[%emt 0:00:01]} 19. f3 {[%emt 0:00:04]} Bc6 {[%emt 0:00:29]} 20. Rde1 {[%emt 0:00:34]} f5 {[%emt 0:00:17]} 21. Bd1 {[%emt 0:00:11]} Ba4 {[%emt 0:00:59]} 22. Bxa4 {[%emt 0:00:20]} Qxa4 {[%emt 0:00:00]} 23. e4 {[%emt 0:00:08]} f4 {[%emt 0:00:47]} 24. e5 {[%emt 0:00:32]} Qb3 {[%emt 0:00:25]} 25. Qd2 {[%emt 0:00:12]} Qb1 {[%emt 0:00:53]} 26. Re4 {[%emt 0:00:51]} Nb3 {[%emt 0:00:06]} 27. Qe1 {[%emt 0:00:07]} Qa1 {[%emt 0:01:18]} 28. Bxf4 {[%emt 0:00:37]} Qxa3 {[%emt 0:00:11]} 29. Qg3 {[%emt 0:00:11]} Rf7 {[%emt 0:00:31]} 30. Qh3 {[%emt 0:01:02]} Re8 {[%emt 0:00:33]} 31. Bg5 {[%emt 0:00:55]} Qf8 {[%emt 0:01:08]} 32. Qh5 {[%emt 0:01:29]} h6 {[%emt 0:00:42]} 33. Bh4 {[%emt 0:00:57]} Rf5 {[%emt 0:00:09]} 34. Qg4 {[%emt 0:00:03]} Nd2 {[%emt 0:00:10]} 35. Rfe1 {[%emt 0:00:28]} Nxe4 {[%emt 0:00:03]} 36. Rxe4 {[%emt 0:00:01]} a5 {[%emt 0:00:16]} 37. Qg3 {[%emt 0:00:04]} a4 {[%emt 0:00:06]} 38. Qe1 {[%emt 0:00:33]} Rf4 {[%emt 0:00:12]} 39. Bg3 {[%emt 0:00:13]} Rxe4 {[%emt 0:00:02]} 40. fxe4 {[%emt 0:00:02]} a3 {[%emt 0:00:08]} 41. d5 {[%emt 0:00:07]} a2 {[%emt 0:00:07]} 42. Qa1 {[%emt 0:00:20]} Qa3 {[%emt 0:00:07]} 0-1

[Event "Wuerttemberg Rapid Teams 2024"]
[Site "B?blingen, Germany"]
[Date "2024.04.13"]
[Round "5.18"]
[White "Ramirez Marin, Ivan"]
[Black "Bodriyenko, Markiyan"]
[Result "1-0"]
[ECO "A88"]
[WhiteElo "2271"]
[BlackElo "1728"]
[Annotator "RC"]
[PlyCount "34"]
[EventDate "2024.04.13"]
[EventType "team-tourn"]
[SourceTitle "playchess.com"]
[Source "ChessBase"]
[SourceQuality "1"]
[TimeControl "900+5"]

1. c4 {[%emt 0:00:01]} f5 {[%emt 0:00:05]} 2. g3 {[%emt 0:00:04]} Nf6 {[%emt 0:00:00]} 3. Bg2 {[%emt 0:00:02]} d6 {[%emt 0:00:00]} 4. d4 {[%emt 0:00:03]} g6 {[%emt 0:00:03]} 5. Nc3 {[%emt 0:00:03]} Bg7 {[%emt 0:00:01]} 6. Nf3 {[%emt 0:00:07]} O-O {[%emt 0:00:06]} 7. O-O {[%emt 0:00:08]} c6 {[%emt 0:00:01]} 8. d5 {[%emt 0:00:20]} e5 {[%emt 0:00:02]} 9. dxe6 {[%emt 0:00:02]} Bxe6 {[%emt 0:00:02]} 10. b3 {[%emt 0:01:41]} Na6 {[%emt 0:00:01]} 11. Bf4 {[%emt 0:00:29]} Ne4 {[%emt 0:00:26]} 12. Nxe4 {[%emt 0:00:15]} Bxa1 {[%emt 0:00:04]} 13. Neg5 {[%emt 0:00:26]} Qe7 {[%emt 0:00:36]} 14. Qxa1 {[%emt 0:00:05]} Rad8 {[%emt 0:00:05]} 15. Nxe6 {[%emt 0:00:04]} Qxe6 {[%emt 0:00:01]} 16. Bh6 {[%emt 0:00:02]} Rf7 {[%emt 0:00:01]} 17. Ng5 {[%emt 0:00:01]} Ra8 {[%emt 0:00:05]} 1-0

[Event "Wuerttemberg Rapid Teams 2024"]
[Site "B?blingen, Germany"]
[Date "2024.04.13"]
[Round "5.19"]
[White "Schnepp, Gunnar"]
[Black "Retzlaff, Kian"]
[Result "0-1"]
[ECO "B48"]
[WhiteElo "2233"]
[BlackElo "1793"]
[Annotator "RC"]
[PlyCount "128"]
[EventDate "2024.04.13"]
[EventType "team-tourn"]
[SourceTitle "playchess.com"]
[Source "ChessBase"]
[SourceQuality "1"]
[TimeControl "900+5"]

1. e4 {[%emt 0:00:02]} c5 {[%emt 0:00:01]} 2. Nf3 {[%emt 0:00:01]} e6 {[%emt 0:00:02]} 3. d4 {[%emt 0:00:02]} cxd4 {[%emt 0:00:01]} 4. Nxd4 {[%emt 0:00:01]} Nc6 {[%emt 0:00:02]} 5. Nc3 {[%emt 0:00:01]} Qc7 {[%emt 0:00:03]} 6. Be3 {[%emt 0:00:28]} a6 {[%emt 0:00:02]} 7. Qf3 {[%emt 0:00:10]} Nf6 {[%emt 0:00:34]} 8. O-O-O {[%emt 0:00:03]} Bb4 {[%emt 0:01:57]} 9. Nce2 {[%emt 0:00:13]} O-O {[%emt 0:01:34]} 10. g4 {[%emt 0:01:44]} Ne5 {[%emt 0:03:21]} 11. Bf4 {[%emt 0:02:45]} Nxf3 {[%emt 0:01:05]} 12. Bxc7 {[%emt 0:00:01]} Nxd4 {[%emt 0:00:02]} 13. Nxd4 {[%emt 0:00:22]} Nxe4 {[%emt 0:01:17]} 14. Be5 {[%emt 0:01:04]} d5 {[%emt 0:00:13]} 15. Bg3 {[%emt 0:00:26]} Nxg3 {[%emt 0:01:24]} 16. hxg3 {[%emt 0:00:00]} Bc5 {[%emt 0:00:08]} 17. f3 {[%emt 0:00:22]} h6 {[%emt 0:00:17]} 18. Nb3 {[%emt 0:00:32]} Bf2 {[%emt 0:00:21]} 19. Bd3 {[%emt 0:01:35]} e5 {[%emt 0:00:02]} 20. Rh3 {[%emt 0:00:35]} Be3+ {[%emt 0:00:05]} 21. Kb1 {[%emt 0:00:01]} Re8 {[%emt 0:01:09]} 22. Re1 {[%emt 0:00:24]} Bg5 {[%emt 0:00:15]} 23. Rh2 {[%emt 0:02:59]} Bd7 {[%emt 0:00:11]} 24. Nc5 {[%emt 0:00:26]} Bc6 {[%emt 0:00:05]} 25. Bf5 {[%emt 0:00:22]} Rad8 {[%emt 0:00:30]} 26. Rhe2 {[%emt 0:00:14]} Be7 {[%emt 0:00:29]} 27. Nd3 {[%emt 0:00:31]} f6 {[%emt 0:00:30]} 28. Bg6 {[%emt 0:00:01]} Rf8 {[%emt 0:00:02]} 29. c3 {[%emt 0:01:24]} Bd6 {[%emt 0:00:05]} 30. f4 {[%emt 0:00:18]} e4 {[%emt 0:00:12]} 31. Nf2 {[%emt 0:00:05]} b5 {[%emt 0:00:09]} 32. Rh1 {[%emt 0:00:24]} Bc5 {[%emt 0:00:12]} 33. Nh3 {[%emt 0:00:06]} Bd7 {[%emt 0:00:19]} 34. Bf5 {[%emt 0:00:07]} Kf7 {[%emt 0:00:09]} 35. Rf1 {[%emt 0:00:02]} g6 {[%emt 0:00:05]} 36. Bxd7 {[%emt 0:00:03]} Rxd7 {[%emt 0:00:01]} 37. g5 {[%emt 0:00:03]} hxg5 {[%emt 0:00:13]} 38. fxg5 {[%emt 0:00:02]} f5 {[%emt 0:00:01]} 39. g4 {[%emt 0:00:01]} Kg7 {[%emt 0:00:03]} 40. Nf4 {[%emt 0:00:05]} Re8 {[%emt 0:00:08]} 41. gxf5 {[%emt 0:00:04]} gxf5 {[%emt 0:00:02]} 42. Nh5+ {[%emt 0:00:01]} Kg6 {[%emt 0:00:06]} 43. Nf6 {[%emt 0:00:01]} Rde7 {[%emt 0:00:17]} 44. Nxe8 {[%emt 0:00:01]} Rxe8 {[%emt 0:00:01]} 45. Rg2 {[%emt 0:00:07]} Be3 {[%emt 0:00:09]} 46. Rd1 {[%emt 0:00:10]} Re5 {[%emt 0:00:05]} 47. b3 {[%emt 0:00:20]} f4 {[%emt 0:00:10]} 48. a4 {[%emt 0:00:09]} f3 {[%emt 0:00:04]} 49. Rg4 {[%emt 0:00:03]} Bxg5 {[%emt 0:00:09]} 50. axb5 {[%emt 0:00:02]} axb5 {[%emt 0:00:00]} 51. Rf1 {[%emt 0:00:05]} e3 {[%emt 0:00:07]} 52. Rxf3 {[%emt 0:00:06]} e2 {[%emt 0:00:02]} 53. Rg1 {[%emt 0:00:01]} e1=Q+ {[%emt 0:00:04]} 54. Rxe1 {[%emt 0:00:01]} Rxe1+ {[%emt 0:00:01]} 55. Ka2 {[%emt 0:00:03]} Re3 {[%emt 0:00:05]} 56. Rxe3 {[%emt 0:00:11]} Bxe3 {[%emt 0:00:01]} 57. Ka3 {[%emt 0:00:01]} Bc5+ {[%emt 0:00:08]} 58. Kb2 {[%emt 0:00:06]} b4 {[%emt 0:00:18]} 59. cxb4 {[%emt 0:00:13]} Bxb4 {[%emt 0:00:02]} 60. Kc2 {[%emt 0:00:01]} Kf5 {[%emt 0:00:01]} 61. Kd3 Ke5 {[%emt 0:00:08]} 62. Kc2 {[%emt 0:00:07]} Ke4 {[%emt 0:00:02]} 63. Kd1 {[%emt 0:00:02]} Kd3 {[%emt 0:00:03]} 64. Kc1 {[%emt 0:00:01]} Kc3 {[%emt 0:00:46]} 0-1

[Event "Wuerttemberg Rapid Teams 2024"]
[Site "B?blingen, Germany"]
[Date "2024.04.13"]
[Round "5.20"]
[White "Geshnizjani, Ramin"]
[Black "Retzlaff, Nick"]
[Result "1-0"]
[ECO "B22"]
[WhiteElo "2137"]
[BlackElo "1707"]
[Annotator "RC"]
[PlyCount "57"]
[EventDate "2024.04.13"]
[EventType "team-tourn"]
[SourceTitle "playchess.com"]
[Source "ChessBase"]
[SourceQuality "1"]
[TimeControl "900+5"]

1. e4 {[%emt 0:00:02]} c5 {[%emt 0:00:00]} 2. c3 {[%emt 0:00:02]} e6 {[%emt 0:00:06]} 3. d4 {[%emt 0:00:05]} d5 {[%emt 0:00:10]} 4. exd5 {[%emt 0:00:11]} exd5 {[%emt 0:00:04]} 5. Nf3 {[%emt 0:00:06]} Nf6 {[%emt 0:00:17]} 6. Bb5+ {[%emt 0:00:59]} Bd7 {[%emt 0:00:22]} 7. Qe2+ {[%emt 0:00:16]} Qe7 {[%emt 0:00:08]} 8. Be3 {[%emt 0:00:15]} c4 {[%emt 0:00:20]} 9. Bxd7+ {[%emt 0:00:19]} Nbxd7 {[%emt 0:00:02]} 10. b3 {[%emt 0:00:15]} Nb6 {[%emt 0:00:14]} 11. O-O {[%emt 0:01:47]} O-O-O {[%emt 0:00:16]} 12. Nbd2 {[%emt 0:00:19]} Ne4 {[%emt 0:00:17]} 13. bxc4 {[%emt 0:00:36]} Nxc3 {[%emt 0:00:15]} 14. Qd3 {[%emt 0:00:06]} Ne4 {[%emt 0:00:34]} 15. c5 {[%emt 0:01:16]} Nd7 {[%emt 0:00:15]} 16. c6 {[%emt 0:00:31]} Nb6 {[%emt 0:01:44]} 17. Rfc1 {[%emt 0:01:26]} Nxd2 {[%emt 0:00:26]} 18. Nxd2 {[%emt 0:00:38]} bxc6 {[%emt 0:00:28]} 19. Qa6+ {[%emt 0:00:52]} Qb7 {[%emt 0:00:05]} 20. Rxc6+ {[%emt 0:00:06]} Kb8 {[%emt 0:00:01]} 21. Bf4+ {[%emt 0:00:12]} Ka8 {[%emt 0:00:04]} 22. Qb5 {[%emt 0:00:19]} Be7 {[%emt 0:00:40]} 23. Rc7 {[%emt 0:00:11]} a6 {[%emt 0:00:24]} 24. Rxb7 {[%emt 0:00:19]} axb5 {[%emt 0:00:06]} 25. Rxb6 {[%emt 0:00:04]} b4 {[%emt 0:00:10]} 26. Rc1 {[%emt 0:01:09]} Rc8 {[%emt 0:00:15]} 27. Rbc6 {[%emt 0:00:01]} Rxc6 {[%emt 0:00:07]} 28. Rxc6 {[%emt 0:00:02]} Kb7 {[%emt 0:00:01]} 29. Rc7+ {[%emt 0:00:01]} 1-0

[Event "Wuerttemberg Rapid Teams 2024"]
[Site "B?blingen, Germany"]
[Date "2024.04.13"]
[Round "5.21"]
[White "Seitz, Patrick"]
[Black "Braeuning, Rudolf Wilhelm"]
[Result "1-0"]
[ECO "C47"]
[WhiteElo "2125"]
[BlackElo "2194"]
[Annotator "RC"]
[PlyCount "75"]
[EventDate "2024.04.13"]
[EventType "team-tourn"]
[SourceTitle "playchess.com"]
[Source "ChessBase"]
[SourceQuality "1"]
[TimeControl "900+5"]

1. e4 {[%emt 0:00:02]} e5 {[%emt 0:00:02]} 2. Nf3 {[%emt 0:00:02]} Nc6 {[%emt 0:00:01]} 3. Nc3 {[%emt 0:00:08]} Nf6 {[%emt 0:00:03]} 4. d4 {[%emt 0:00:01]} exd4 {[%emt 0:00:06]} 5. Nxd4 {[%emt 0:00:02]} Bc5 {[%emt 0:00:08]} 6. Be3 {[%emt 0:00:02]} Nxd4 {[%emt 0:00:19]} 7. Bxd4 {[%emt 0:00:02]} Bxd4 {[%emt 0:00:02]} 8. Qxd4 {[%emt 0:00:02]} O-O {[%emt 0:00:02]} 9. e5 {[%emt 0:00:47]} Ne8 {[%emt 0:00:15]} 10. O-O-O {[%emt 0:00:11]} d6 {[%emt 0:02:27]} 11. f4 {[%emt 0:02:20]} Qh4 {[%emt 0:00:00]} 12. g3 {[%emt 0:00:22]} Qh6 {[%emt 0:00:00]} 13. Bg2 {[%emt 0:01:47]} Bg4 {[%emt 0:00:00]} 14. Bxb7 {[%emt 0:00:29]} dxe5 {[%emt 0:01:32]} 15. Qa4 {[%emt 0:00:57]} Rb8 {[%emt 0:00:00]} 16. Qxa7 {[%emt 0:02:06]} Nd6 {[%emt 0:00:00]} 17. Bd5 {[%emt 0:00:14]} Bxd1 {[%emt 0:00:00]} 18. Rxd1 {[%emt 0:00:16]} exf4 {[%emt 0:00:00]} 19. gxf4 {[%emt 0:00:08]} Qxf4+ {[%emt 0:00:00]} 20. Kb1 {[%emt 0:00:01]} Qb4 {[%emt 0:00:25]} 21. Bb3 {[%emt 0:00:14]} Qg4 {[%emt 0:02:34]} 22. Qd4 {[%emt 0:00:19]} Qxd4 {[%emt 0:00:22]} 23. Rxd4 {[%emt 0:00:02]} Nb5 {[%emt 0:00:13]} 24. Nxb5 {[%emt 0:00:13]} Rxb5 {[%emt 0:00:01]} 25. a4 {[%emt 0:00:12]} Rb7 {[%emt 0:00:16]} 26. Rd7 {[%emt 0:00:52]} g5 {[%emt 0:00:25]} 27. Bc4 {[%emt 0:01:11]} Ra7 {[%emt 0:00:24]} 28. b3 {[%emt 0:00:19]} Kg7 {[%emt 0:00:08]} 29. Kb2 {[%emt 0:00:52]} Kg6 {[%emt 0:00:06]} 30. Ka3 {[%emt 0:00:16]} f5 {[%emt 0:00:18]} 31. b4 {[%emt 0:00:13]} h5 {[%emt 0:01:41]} 32. b5 {[%emt 0:00:22]} Raa8 {[%emt 0:00:02]} 33. Rxc7 {[%emt 0:00:11]} Rac8 {[%emt 0:00:27]} 34. Rxc8 {[%emt 0:00:25]} Rxc8 {[%emt 0:00:01]} 35. b6 {[%emt 0:00:26]} Kf6 {[%emt 0:00:25]} 36. a5 {[%emt 0:00:19]} Ke5 {[%emt 0:03:47]} 37. b7 {[%emt 0:00:04]} Rb8 {[%emt 0:00:01]} 38. a6 {[%emt 0:00:03]} 1-0

[Event "Wuerttemberg Rapid Teams 2024"]
[Site "B?blingen, Germany"]
[Date "2024.04.13"]
[Round "5.22"]
[White "Narr, Kevin"]
[Black "Hartmann, Martin"]
[Result "1-0"]
[ECO "B22"]
[WhiteElo "1977"]
[BlackElo "2158"]
[Annotator "RC"]
[PlyCount "81"]
[EventDate "2024.04.13"]
[EventType "team-tourn"]
[SourceTitle "playchess.com"]
[Source "ChessBase"]
[SourceQuality "1"]
[TimeControl "900+5"]

1. d4 {[%emt 0:00:00]} Nf6 {[%emt 0:00:03]} 2. Nf3 {[%emt 0:00:01]} c5 {[%emt 0:00:01]} 3. c3 {[%emt 0:00:12]} cxd4 {[%emt 0:00:18]} 4. cxd4 {[%emt 0:00:00]} g6 {[%emt 0:00:01]} 5. Nc3 {[%emt 0:00:01]} Bg7 {[%emt 0:00:02]} 6. e4 {[%emt 0:00:29]} d6 {[%emt 0:00:03]} 7. Be2 {[%emt 0:00:22]} O-O {[%emt 0:00:03]} 8. O-O {[%emt 0:00:02]} a6 {[%emt 0:00:02]} 9. a4 {[%emt 0:00:05]} Nc6 {[%emt 0:00:12]} 10. h3 {[%emt 0:00:10]} Bd7 {[%emt 0:00:54]} 11. Be3 {[%emt 0:00:10]} Rc8 {[%emt 0:00:02]} 12. Qb3 {[%emt 0:02:33]} Qc7 {[%emt 0:01:08]} 13. Rfc1 {[%emt 0:00:19]} Qb8 {[%emt 0:00:02]} 14. d5 {[%emt 0:00:59]} Nd8 {[%emt 0:00:30]} 15. a5 {[%emt 0:00:18]} e5 {[%emt 0:01:53]} 16. Nd2 {[%emt 0:01:14]} Ne8 {[%emt 0:00:10]} 17. Nc4 {[%emt 0:00:37]} f5 {[%emt 0:00:08]} 18. Nb6 {[%emt 0:00:10]} Rc7 {[%emt 0:00:30]} 19. Nxd7 {[%emt 0:00:31]} Rxd7 {[%emt 0:00:00]} 20. Bxa6 {[%emt 0:00:25]} Nf6 {[%emt 0:00:08]} 21. Bb5 {[%emt 0:00:16]} Rdf7 {[%emt 0:00:06]} 22. Bd3 {[%emt 0:00:23]} f4 {[%emt 0:00:14]} 23. Bb6 {[%emt 0:00:14]} g5 {[%emt 0:01:22]} 24. f3 {[%emt 0:00:20]} h5 {[%emt 0:00:08]} 25. Nb5 {[%emt 0:00:01]} Ne8 {[%emt 0:00:35]} 26. Rc2 {[%emt 0:00:22]} g4 {[%emt 0:01:04]} 27. Rac1 {[%emt 0:00:00]} Nc6 {[%emt 0:00:19]} 28. dxc6 {[%emt 0:00:07]} bxc6 {[%emt 0:00:02]} 29. Rxc6 {[%emt 0:00:11]} gxh3 {[%emt 0:00:05]} 30. gxh3 {[%emt 0:00:18]} Kh8 {[%emt 0:01:09]} 31. Rc8 {[%emt 0:00:38]} Qb7 {[%emt 0:00:00]} 32. Rxe8 {[%emt 0:00:37]} Rxe8 {[%emt 0:00:00]} 33. Nxd6 {[%emt 0:00:02]} Qe7 {[%emt 0:00:00]} 34. Nxf7+ {[%emt 0:00:16]} Kh7 {[%emt 0:00:00]} 35. Kh2 {[%emt 0:01:35]} Rf8 {[%emt 0:00:52]} 36. Bc5 {[%emt 0:01:29]} Qh4 {[%emt 0:00:02]} 37. Rg1 {[%emt 0:00:08]} Rc8 {[%emt 0:00:21]} 38. Ng5+ {[%emt 0:00:15]} Kh8 {[%emt 0:00:00]} 39. Qf7 {[%emt 0:00:20]} Rxc5 {[%emt 0:00:58]} 40. Qe8+ {[%emt 0:00:02]} Bf8 {[%emt 0:00:01]} 41. Qxf8# {[%emt 0:00:01]} 1-0

[Event "Wuerttemberg Rapid Teams 2024"]
[Site "B?blingen, Germany"]
[Date "2024.04.13"]
[Round "5.23"]
[White "Sulzbacher, Kurt"]
[Black "Freiherr von Hauff, Christopher"]
[Result "0-1"]
[ECO "B07"]
[WhiteElo "1976"]
[BlackElo "1960"]
[Annotator "TA"]
[PlyCount "60"]
[EventDate "2024.04.13"]
[EventType "team-tourn"]
[SourceTitle "playchess.com"]
[Source "ChessBase"]
[SourceQuality "1"]
[TimeControl "900+5"]

{[%evp 9,60,0,17,-89,-77,-59,-24,-22,-18,-66,-70,-92,-92,-105,-87,-120,-111,-197,-40,-67,-71,-572,-587,-572,-538,-535,-533,-534,-528,-529,-534,-578,-518,-568,-498,-727,-515,-476,-494,-471,-402,-1013,-1008,-29993,-29994,-29995,-29996,-29996,-29997,-29997,-29998,-29998,-29999]} 1. e4 {[%emt 0:00:03]} d6 {[%emt 0:00:13]} 2. d4 {[%emt 0:00:04]} Nf6 {[%emt 0:00:01]} 3. Nc3 {[%emt 0:00:01]} g6 {[%emt 0:00:01]} 4. Be2 {[%emt 0:00:02]} Bg7 {[%emt 0:00:02]} 5. g4 {[%emt 0:00:01]} h6 {[%emt 0:00:15]} 6. g5 {[%emt 0:00:49]} (6. f3 $11) 6... hxg5 $17 {[%emt 0:00:04]} 7. Bxg5 {[%emt 0:00:01]} c6 {[%emt 0:00:12]} 8. Qd2 {[%emt 0:00:26] Black has an edge.} b5 {[%emt 0:00:50] [#] Strongly threatening ...b4.} 9. f3 {[%emt 0:00:28]} (9. e5 $11 {deserves consideration.} dxe5 10. dxe5) 9... Nbd7 {[%emt 0:00:23]} 10. a4 {[%emt 0:01:32]} b4 {[%emt 0:00:17]} 11. Nd1 {[%emt 0:00:06][%cal Oe2d3]} a5 {[%emt 0:00:11]} 12. Ne3 {[%emt 0:00:20]} c5 {[%emt 0:00:31] White must now prevent ...cxd4.} 13. d5 {[%emt 0:00:22] [#]} (13. c3 $17) 13... Nxe4 $2 {[%emt 0:00:13]} 14. fxe4 $15 {[%emt 0:01:35] Hoping for 0-0-0.} Bxb2 {[%emt 0:00:03]} 15. Nd1 {[%emt 0:00:44][%mdl 8192] White does not recover from this.} Bxa1 $19 {[%emt 0:00:11]} 16. Bb5 {[%emt 0:00:16]} f6 {[%emt 0:00:51]} 17. Bf4 {[%emt 0:01:10]} Kf7 {[%emt 0:00:12]} 18. Nf3 {[%emt 0:00:06]} Ne5 {[%emt 0:00:52]} 19. Bxe5 {[%emt 0:01:14]} Bxe5 {[%emt 0:00:15]} 20. O-O {[%emt 0:01:35]} Qf8 {[%emt 0:02:48]} 21. Bc4 {[%emt 0:01:55]} Ba6 {[%emt 0:00:48]} 22. Ng5+ {[%emt 0:01:41]} (22. Bxa6 $142 Rxa6 23. Qe2) 22... Ke8 {[%emt 0:01:22]} 23. Bxa6 {[%emt 0:00:07]} Rxa6 {[%emt 0:00:31]} 24. Ne6 {[%emt 0:00:02]} Rxh2 {[%emt 0:01:00]} 25. Qd3 {[%emt 0:02:09]} (25. Rf2 $142 Qh8 (25... Rxf2 $2 26. Nxf2 Qh8 27. Nc7+ Kf7 28. Nxa6 $19) 26. Rxh2 Qxh2+ (26... Bxh2+ $2 27. Qxh2 Qxh2+ 28. Kxh2 $19) 27. Qxh2 Bxh2+ 28. Kxh2) 25... Qh6 {[%emt 0:01:18]} ({Worse is} 25... c4 26. Qxc4 Qh8 27. Qc8+ Kf7 28. Ng5+ Kg7 29. Ne6+ Kh7 30. Qxa6 $11) 26. Qxa6 {[%emt 0:00:00]} Rh1+ {[%emt 0:02:23] Black mates.} ({And not} 26... Rxc2 27. Qc8+ Kf7 28. Nd8+ Kg8 (28... Kg7 29. Ne6+ Kf7 30. Nd8+ Kg7 31. Ne6+ Kf7 $11) 29. Ne6+ (29. Qe6+ Kh7 $11) 29... Kf7 30. Nd8+ Kg7 31. Ne6+ Kf7 $11) 27. Kg2 {[%emt 0:00:00]} Qh3+ {[%emt 0:00:35]} 28. Kf2 {[%emt 0:00:00]} Rh2+ {[%emt 0:00:01]} 29. Ke1 {[%emt 0:00:00]} Bc3+ {[%emt 0:00:02]} 30. Nxc3 {[%emt 0:00:00]} Qxc3+ {[%emt 0:00:02] Weighted Error Value: White=0.67/Black=0.35.  Loses game:     	White=1     	---        Mistake:       	White=4     	Black=1      Inaccurate:     	White=3     	Black=1      OK:         	White=7     	Black=5      Best:        	---       	Black=3} 0-1